Department family,Entity,Date,Expense type,Expense area,Supplier,Transaction number,Amount
Department of Health,Leicestershire Partnership NHS Trust,01/10/21,Healthcare Services / Recharges from Non-NHS Bodies,Adult Eating Disorder Collaborative,RIVERDALE GRANGE LIMITED,839,55000.00
Department of Health,Leicestershire Partnership NHS Trust,01/10/21,Healthcare Services / Recharges from Non-NHS Bodies,AMH - Central Access Point,TURNING POINT,SI-TPS-00035744,21486.83
Department of Health,Leicestershire Partnership NHS Trust,01/10/21,Unitary Payment,"The Agnes Unit (AKA Assessment and Treatment Centre) (P85, LPT)",ARDEN PARTNERSHIP (LEICESTER),SI0079,117371.90
Department of Health,Leicestershire Partnership NHS Trust,01/10/21,Payroll Deductions -Salary Sacrifice Cars Scheme,Balance Sheet Collection,TUSKER,52109,30581.66
Department of Health,Leicestershire Partnership NHS Trust,01/10/21,Computer License  Fees,Finance Department,VERSION 1,INVSOL010812,37544.40
Department of Health,Leicestershire Partnership NHS Trust,01/10/21,Rent,NSPCC Training Cente,NSPCC,119317,28752.40
Department of Health,Leicestershire Partnership NHS Trust,01/10/21,Rent,County Hall,LEIC COUNTY COUNCIL,6288936,34488.50
Department of Health,Leicestershire Partnership NHS Trust,04/10/21,Medical Equipment Repairs / Maintenance,Medical Devices Maintenance (LPT),SUPPLY CHAIN CO LTD,2122003956,121431.38
Department of Health,Leicestershire Partnership NHS Trust,04/10/21,Crs_NHS_LT1y -Resus Inventory Supplied.,Balance Sheet Collection,SUPPLY CHAIN CO LTD,1122121125,25043.45
Department of Health,Leicestershire Partnership NHS Trust,04/10/21,Leased / Hired Vehicles,Adult County South Leicestershire CMHT,AUTOMOTIVE LEASING LTD,508937427,10.00
Department of Health,Leicestershire Partnership NHS Trust,04/10/21,Leased / Hired Vehicles,Autism,AUTOMOTIVE LEASING LTD,508937427,638.96
Department of Health,Leicestershire Partnership NHS Trust,04/10/21,Prep_ LT1y -Prepayments Lease Cars,Balance Sheet Collection,AUTOMOTIVE LEASING LTD,508937427,22189.96
Department of Health,Leicestershire Partnership NHS Trust,04/10/21,Trade_Drs_LT1y -Lease Cars Invoicing Contrl Ac.,Balance Sheet Collection,AUTOMOTIVE LEASING LTD,508937427,1263.05
Department of Health,Leicestershire Partnership NHS Trust,04/10/21,Leased / Hired Vehicles,CHS Phlebotomy Service,AUTOMOTIVE LEASING LTD,508937427,10.00
Department of Health,Leicestershire Partnership NHS Trust,04/10/21,Leased / Hired Vehicles,COVID 19,AUTOMOTIVE LEASING LTD,508937427,944.72
Department of Health,Leicestershire Partnership NHS Trust,04/10/21,Leased / Hired Vehicles,City Planned Care - East,AUTOMOTIVE LEASING LTD,508937427,10.00
Department of Health,Leicestershire Partnership NHS Trust,04/10/21,Leased / Hired Vehicles,"East Planned Care - Melton,Syston,Rut - Therapy",AUTOMOTIVE LEASING LTD,508937427,10.00
Department of Health,Leicestershire Partnership NHS Trust,04/10/21,Leased / Hired Vehicles,"East Planned Care - Melton,Syston,Rutland",AUTOMOTIVE LEASING LTD,508937427,15.00
Department of Health,Leicestershire Partnership NHS Trust,04/10/21,Leased / Hired Vehicles,HIS Infrastructure,AUTOMOTIVE LEASING LTD,508937427,5.00
Department of Health,Leicestershire Partnership NHS Trust,04/10/21,Leased / Hired Vehicles,Neuro/Stroke Rehab Service,AUTOMOTIVE LEASING LTD,508937427,10.00
Department of Health,Leicestershire Partnership NHS Trust,04/10/21,Leased / Hired Vehicles,School Age Immunisation and Vaccinations,AUTOMOTIVE LEASING LTD,508937427,114.42
Department of Health,Leicestershire Partnership NHS Trust,04/10/21,Leased / Hired Vehicles,West Leicestershire CMHT MHSOP,AUTOMOTIVE LEASING LTD,508937427,271.20
Department of Health,Leicestershire Partnership NHS Trust,04/10/21,Leased / Hired Vehicles,West Planned Care  - Charnwood Hub,AUTOMOTIVE LEASING LTD,508937427,15.00
Department of Health,Leicestershire Partnership NHS Trust,04/10/21,Leased / Hired Vehicles,West Planned Care  - Hinckley Hub,AUTOMOTIVE LEASING LTD,508937427,15.00
Department of Health,Leicestershire Partnership NHS Trust,04/10/21,Leased / Hired Vehicles,West Planned Care - NWL Hub,AUTOMOTIVE LEASING LTD,508937427,15.00
Department of Health,Leicestershire Partnership NHS Trust,05/10/21,External Data Processing / Storage,Records & information Governance,H COATES LTD/TA C&V DATA,4006685,31978.54
Department of Health,Leicestershire Partnership NHS Trust,05/10/21,NURSE - BAND 2 - AGENCY,Beechwood Ward,HCL NURSING,HNSI0000804,6088.30
Department of Health,Leicestershire Partnership NHS Trust,05/10/21,NURSE - BAND 5 - AGENCY,Beechwood Ward,HCL NURSING,HNSI0000804,1478.53
Department of Health,Leicestershire Partnership NHS Trust,05/10/21,NURSE - BAND 5 - AGENCY,City & County Continence Service,HCL NURSING,HNSI0000804,408.41
Department of Health,Leicestershire Partnership NHS Trust,05/10/21,NURSE - BAND 5 - AGENCY,City Planned Care - East,HCL NURSING,HNSI0000804,14536.82
Department of Health,Leicestershire Partnership NHS Trust,05/10/21,NURSE - BAND 5 - AGENCY,City Planned Care - West,HCL NURSING,HNSI0000804,16483.70
Department of Health,Leicestershire Partnership NHS Trust,05/10/21,NURSE - BAND 2 - AGENCY,Clarendon Ward,HCL NURSING,HNSI0000804,3030.86
Department of Health,Leicestershire Partnership NHS Trust,05/10/21,NURSE - BAND 5 - AGENCY,Clarendon Ward,HCL NURSING,HNSI0000804,9871.24
Department of Health,Leicestershire Partnership NHS Trust,05/10/21,NURSE - BAND 2 - AGENCY,Coalville Snibston Ward,HCL NURSING,HNSI0000804,1253.02
Department of Health,Leicestershire Partnership NHS Trust,05/10/21,NURSE - BAND 5 - AGENCY,Coalville Snibston Ward,HCL NURSING,HNSI0000804,1581.14
Department of Health,Leicestershire Partnership NHS Trust,05/10/21,NURSE - BAND 5 - AGENCY,Coalville Ward 2,HCL NURSING,HNSI0000804,1723.83
Department of Health,Leicestershire Partnership NHS Trust,05/10/21,NURSE - BAND 2 - AGENCY,Dalgliesh Ward,HCL NURSING,HNSI0000804,2061.60
Department of Health,Leicestershire Partnership NHS Trust,05/10/21,NURSE - BAND 5 - AGENCY,Dalgliesh Ward,HCL NURSING,HNSI0000804,1354.45
Department of Health,Leicestershire Partnership NHS Trust,05/10/21,NURSE - BAND 2 - AGENCY,H&B Comm Hosp East Ward,HCL NURSING,HNSI0000804,1709.14
Department of Health,Leicestershire Partnership NHS Trust,05/10/21,NURSE - BAND 5 - AGENCY,H&B Comm Hosp East Ward,HCL NURSING,HNSI0000804,8946.34
Department of Health,Leicestershire Partnership NHS Trust,05/10/21,NURSE - BAND 2 - AGENCY,H&B Comm Hosp North Ward,HCL NURSING,HNSI0000804,6534.92
Department of Health,Leicestershire Partnership NHS Trust,05/10/21,NURSE - BAND 5 - AGENCY,H&B Comm Hosp North Ward,HCL NURSING,HNSI0000804,3494.61
Department of Health,Leicestershire Partnership NHS Trust,05/10/21,NURSE - BAND 2 - AGENCY,Lough Swithland Ward,HCL NURSING,HNSI0000804,219.46
Department of Health,Leicestershire Partnership NHS Trust,05/10/21,NURSE - BAND 5 - AGENCY,Lough Swithland Ward,HCL NURSING,HNSI0000804,2995.25
Department of Health,Leicestershire Partnership NHS Trust,05/10/21,NURSE - BAND 2 - AGENCY,Rutland Ward Nursing,HCL NURSING,HNSI0000804,921.80
Department of Health,Leicestershire Partnership NHS Trust,05/10/21,NURSE - BAND 5 - AGENCY,Rutland Ward Nursing,HCL NURSING,HNSI0000804,1405.80
Department of Health,Leicestershire Partnership NHS Trust,05/10/21,NURSE - BAND 2 - AGENCY,St Lukes Stroke Ward,HCL NURSING,HNSI0000804,1968.04
Department of Health,Leicestershire Partnership NHS Trust,05/10/21,NURSE - BAND 5 - AGENCY,St Lukes Stroke Ward,HCL NURSING,HNSI0000804,2930.15
Department of Health,Leicestershire Partnership NHS Trust,05/10/21,NURSE - BAND 5 - AGENCY,St Lukes Ward 3,HCL NURSING,HNSI0000804,3243.40
Department of Health,Leicestershire Partnership NHS Trust,05/10/21,NURSE - BAND 2 - AGENCY,Wakerley Ward,HCL NURSING,HNSI0000804,3849.30
Department of Health,Leicestershire Partnership NHS Trust,05/10/21,NURSE - BAND 5 - AGENCY,Wakerley Ward,HCL NURSING,HNSI0000804,6019.60
Department of Health,Leicestershire Partnership NHS Trust,06/10/21,Computer Hardware,COVID vaccination for Children and Young people,DELL COMPUTERS,7402746530,33210.00
Department of Health,Leicestershire Partnership NHS Trust,07/10/21,HR / Payroll Services,HR Employment Services,LINCOLNSHIRE PART NHSFT(RP7),2000021492,29360.83
Department of Health,Leicestershire Partnership NHS Trust,07/10/21,NURSE - BAND 2 - AGENCY,Beechwood Ward,HCL NURSING,HNSI0000810,5500.91
Department of Health,Leicestershire Partnership NHS Trust,07/10/21,NURSE - BAND 5 - AGENCY,Beechwood Ward,HCL NURSING,HNSI0000810,2935.76
Department of Health,Leicestershire Partnership NHS Trust,07/10/21,NURSE - BAND 5 - AGENCY,City & County Continence Service,HCL NURSING,HNSI0000810,815.86
Department of Health,Leicestershire Partnership NHS Trust,07/10/21,NURSE - BAND 5 - AGENCY,City Planned Care - East,HCL NURSING,HNSI0000810,14656.46
Department of Health,Leicestershire Partnership NHS Trust,07/10/21,NURSE - BAND 5 - AGENCY,City Planned Care - West,HCL NURSING,HNSI0000810,11510.77
Department of Health,Leicestershire Partnership NHS Trust,07/10/21,NURSE - BAND 2 - AGENCY,Clarendon Ward,HCL NURSING,HNSI0000810,4659.00
Department of Health,Leicestershire Partnership NHS Trust,07/10/21,NURSE - BAND 5 - AGENCY,Clarendon Ward,HCL NURSING,HNSI0000810,5745.76
Department of Health,Leicestershire Partnership NHS Trust,07/10/21,NURSE - BAND 2 - AGENCY,Coalville Snibston Ward,HCL NURSING,HNSI0000810,1031.69
Department of Health,Leicestershire Partnership NHS Trust,07/10/21,NURSE - BAND 5 - AGENCY,Coalville Snibston Ward,HCL NURSING,HNSI0000810,971.05
Department of Health,Leicestershire Partnership NHS Trust,07/10/21,NURSE - BAND 5 - AGENCY,Coalville Ward 2,HCL NURSING,HNSI0000810,2972.37
Department of Health,Leicestershire Partnership NHS Trust,07/10/21,NURSE - BAND 2 - AGENCY,Dalgliesh Ward,HCL NURSING,HNSI0000810,982.86
Department of Health,Leicestershire Partnership NHS Trust,07/10/21,NURSE - BAND 5 - AGENCY,Dalgliesh Ward,HCL NURSING,HNSI0000810,386.05
Department of Health,Leicestershire Partnership NHS Trust,07/10/21,NURSE - BAND 2 - AGENCY,H&B Comm Hosp East Ward,HCL NURSING,HNSI0000810,6947.34
Department of Health,Leicestershire Partnership NHS Trust,07/10/21,NURSE - BAND 5 - AGENCY,H&B Comm Hosp East Ward,HCL NURSING,HNSI0000810,8223.25
Department of Health,Leicestershire Partnership NHS Trust,07/10/21,NURSE - BAND 2 - AGENCY,H&B Comm Hosp North Ward,HCL NURSING,HNSI0000810,5788.25
Department of Health,Leicestershire Partnership NHS Trust,07/10/21,NURSE - BAND 5 - AGENCY,H&B Comm Hosp North Ward,HCL NURSING,HNSI0000810,3577.35
Department of Health,Leicestershire Partnership NHS Trust,07/10/21,NURSE - BAND 2 - AGENCY,Lough Swithland Ward,HCL NURSING,HNSI0000810,240.34
Department of Health,Leicestershire Partnership NHS Trust,07/10/21,NURSE - BAND 5 - AGENCY,Lough Swithland Ward,HCL NURSING,HNSI0000810,3635.31
Department of Health,Leicestershire Partnership NHS Trust,07/10/21,NURSE - BAND 2 - AGENCY,Rutland Ward Nursing,HCL NURSING,HNSI0000810,1457.25
Department of Health,Leicestershire Partnership NHS Trust,07/10/21,NURSE - BAND 5 - AGENCY,Rutland Ward Nursing,HCL NURSING,HNSI0000810,792.26
Department of Health,Leicestershire Partnership NHS Trust,07/10/21,NURSE - BAND 2 - AGENCY,St Lukes Stroke Ward,HCL NURSING,HNSI0000810,4200.86
Department of Health,Leicestershire Partnership NHS Trust,07/10/21,NURSE - BAND 2 - AGENCY,St Lukes Ward 3,HCL NURSING,HNSI0000810,418.99
Department of Health,Leicestershire Partnership NHS Trust,07/10/21,NURSE - BAND 5 - AGENCY,St Lukes Ward 3,HCL NURSING,HNSI0000810,2242.50
Department of Health,Leicestershire Partnership NHS Trust,07/10/21,NURSE - BAND 2 - AGENCY,Wakerley Ward,HCL NURSING,HNSI0000810,5096.48
Department of Health,Leicestershire Partnership NHS Trust,07/10/21,NURSE - BAND 5 - AGENCY,Wakerley Ward,HCL NURSING,HNSI0000810,8542.06
Department of Health,Leicestershire Partnership NHS Trust,08/10/21,Insurance Costs,Chief Executives Office,NHS LITIGATION AUTHORITY,SICX406821,165217.80
Department of Health,Leicestershire Partnership NHS Trust,08/10/21,Med Trainees - FY1,Medical Trainees,UHL NHS TRUST (RWE),L0254078,29754.80
Department of Health,Leicestershire Partnership NHS Trust,11/10/21,Nurse - Band 6 -Agency,AMH - Central Access Point,HCL NURSING,HNSI0000816,3173.68
Department of Health,Leicestershire Partnership NHS Trust,11/10/21,Nurse - Band 6 -Agency,Adult County Charnwood CMHT - Loughborough Base,HCL NURSING,HNSI0000816,1069.97
Department of Health,Leicestershire Partnership NHS Trust,11/10/21,Nurse - Band 6 -Agency,Adult County West Leicestershire CMHT,HCL NURSING,HNSI0000816,2545.07
Department of Health,Leicestershire Partnership NHS Trust,11/10/21,NURSE - BAND 2 - AGENCY,Agnes Unit Management,HCL NURSING,HNSI0000816,16590.89
Department of Health,Leicestershire Partnership NHS Trust,11/10/21,NURSE - BAND 5 - AGENCY,Agnes Unit Management,HCL NURSING,HNSI0000816,18594.83
Department of Health,Leicestershire Partnership NHS Trust,11/10/21,NURSE - BAND 2 - AGENCY,Ashby Ward (Bradgate Unit),HCL NURSING,HNSI0000816,713.70
Department of Health,Leicestershire Partnership NHS Trust,11/10/21,NURSE - BAND 5 - AGENCY,Ashby Ward (Bradgate Unit),HCL NURSING,HNSI0000816,3027.18
Department of Health,Leicestershire Partnership NHS Trust,11/10/21,NURSE - BAND 2 - AGENCY,Aston Ward (Bradgate Unit),HCL NURSING,HNSI0000816,538.97
Department of Health,Leicestershire Partnership NHS Trust,11/10/21,NURSE - BAND 5 - AGENCY,Aston Ward (Bradgate Unit),HCL NURSING,HNSI0000816,2949.79
Department of Health,Leicestershire Partnership NHS Trust,11/10/21,NURSE - BAND 2 - AGENCY,Beaumont Ward - Bradgate Unit,HCL NURSING,HNSI0000816,4194.56
Department of Health,Leicestershire Partnership NHS Trust,11/10/21,NURSE - BAND 5 - AGENCY,Beaumont Ward - Bradgate Unit,HCL NURSING,HNSI0000816,1400.10
Department of Health,Leicestershire Partnership NHS Trust,11/10/21,NURSE - BAND 2 - AGENCY,Belvoir Psychiatric Intensive Care Unit,HCL NURSING,HNSI0000816,387.99
Department of Health,Leicestershire Partnership NHS Trust,11/10/21,NURSE - BAND 5 - AGENCY,Belvoir Psychiatric Intensive Care Unit,HCL NURSING,HNSI0000816,4967.41
Department of Health,Leicestershire Partnership NHS Trust,11/10/21,NURSE - BAND 2 - AGENCY,Cedar (Willows),HCL NURSING,HNSI0000816,1426.19
Department of Health,Leicestershire Partnership NHS Trust,11/10/21,Nurse - Band 6 -Agency,City West CMHT MHSOP,HCL NURSING,HNSI0000816,855.97
Department of Health,Leicestershire Partnership NHS Trust,11/10/21,NURSE - BAND 2 - AGENCY,Coleman Ward,HCL NURSING,HNSI0000816,13672.20
Department of Health,Leicestershire Partnership NHS Trust,11/10/21,NURSE - BAND 5 - AGENCY,Coleman Ward,HCL NURSING,HNSI0000816,5839.89
Department of Health,Leicestershire Partnership NHS Trust,11/10/21,NURSE - BAND 2 - AGENCY,Griffin Ward (HPC),HCL NURSING,HNSI0000816,1644.61
Department of Health,Leicestershire Partnership NHS Trust,11/10/21,NURSE - BAND 2 - AGENCY,Heather Ward,HCL NURSING,HNSI0000816,3291.46
Department of Health,Leicestershire Partnership NHS Trust,11/10/21,NURSE - BAND 5 - AGENCY,Heather Ward,HCL NURSING,HNSI0000816,2782.15
Department of Health,Leicestershire Partnership NHS Trust,11/10/21,NURSE - BAND 2 - AGENCY,Kirby Ward,HCL NURSING,HNSI0000816,2838.40
Department of Health,Leicestershire Partnership NHS Trust,11/10/21,NURSE - BAND 5 - AGENCY,Kirby Ward,HCL NURSING,HNSI0000816,1724.30
Department of Health,Leicestershire Partnership NHS Trust,11/10/21,NURSE - BAND 2 - AGENCY,Maple Ward,HCL NURSING,HNSI0000816,314.63
Department of Health,Leicestershire Partnership NHS Trust,11/10/21,NURSE - BAND 5 - AGENCY,Mental Health Liaison Team,HCL NURSING,HNSI0000816,504.35
Department of Health,Leicestershire Partnership NHS Trust,11/10/21,Nurse - Band 6 -Agency,Mental Health Liaison Team,HCL NURSING,HNSI0000816,1736.91
Department of Health,Leicestershire Partnership NHS Trust,11/10/21,NURSE - BAND 2 - AGENCY,Mill Lodge,HCL NURSING,HNSI0000816,2628.29
Department of Health,Leicestershire Partnership NHS Trust,11/10/21,NURSE - BAND 5 - AGENCY,Mill Lodge,HCL NURSING,HNSI0000816,4047.44
Department of Health,Leicestershire Partnership NHS Trust,11/10/21,NURSE - BAND 2 - AGENCY,Phoenix Ward (HPC),HCL NURSING,HNSI0000816,925.04
Department of Health,Leicestershire Partnership NHS Trust,11/10/21,NURSE - BAND 5 - AGENCY,Phoenix Ward (HPC),HCL NURSING,HNSI0000816,1036.84
Department of Health,Leicestershire Partnership NHS Trust,11/10/21,NURSE - BAND 2 - AGENCY,Place Of Safety Assessment Unit,HCL NURSING,HNSI0000816,720.66
Department of Health,Leicestershire Partnership NHS Trust,11/10/21,NURSE - BAND 5 - AGENCY,Place Of Safety Assessment Unit,HCL NURSING,HNSI0000816,2027.69
Department of Health,Leicestershire Partnership NHS Trust,11/10/21,NURSE - BAND 2 - AGENCY,Stewart House,HCL NURSING,HNSI0000816,1150.82
Department of Health,Leicestershire Partnership NHS Trust,11/10/21,NURSE - BAND 5 - AGENCY,Thornton Ward - Bradgate Unit,HCL NURSING,HNSI0000816,1502.34
Department of Health,Leicestershire Partnership NHS Trust,11/10/21,NURSE - BAND 2 - AGENCY,Urgent Care Hub,HCL NURSING,HNSI0000816,910.98
Department of Health,Leicestershire Partnership NHS Trust,11/10/21,NURSE - BAND 5 - AGENCY,Watermead Ward (Bradgate Unit),HCL NURSING,HNSI0000816,339.98
Department of Health,Leicestershire Partnership NHS Trust,11/10/21,NURSE - BAND 2 - AGENCY,Welford Ward,HCL NURSING,HNSI0000816,2477.66
Department of Health,Leicestershire Partnership NHS Trust,11/10/21,NURSE - BAND 5 - AGENCY,Welford Ward,HCL NURSING,HNSI0000816,469.65
Department of Health,Leicestershire Partnership NHS Trust,11/10/21,Nurse - Band 6 -Agency,AMH - Central Access Point,HCL NURSING,HNSI0000809,4667.76
Department of Health,Leicestershire Partnership NHS Trust,11/10/21,Nurse - Band 6 -Agency,Adult City East CMHT - Merlyn Vaz,HCL NURSING,HNSI0000809,2785.82
Department of Health,Leicestershire Partnership NHS Trust,11/10/21,Nurse - Band 6 -Agency,Adult County Charnwood CMHT - Loughborough Base,HCL NURSING,HNSI0000809,3300.12
Department of Health,Leicestershire Partnership NHS Trust,11/10/21,Nurse - Band 6 -Agency,Adult County West Leicestershire CMHT,HCL NURSING,HNSI0000809,1069.97
Department of Health,Leicestershire Partnership NHS Trust,11/10/21,NURSE - BAND 2 - AGENCY,Agnes Unit Management,HCL NURSING,HNSI0000809,24317.52
Department of Health,Leicestershire Partnership NHS Trust,11/10/21,NURSE - BAND 5 - AGENCY,Agnes Unit Management,HCL NURSING,HNSI0000809,14517.33
Department of Health,Leicestershire Partnership NHS Trust,11/10/21,NURSE - BAND 2 - AGENCY,Ashby Ward (Bradgate Unit),HCL NURSING,HNSI0000809,2583.78
Department of Health,Leicestershire Partnership NHS Trust,11/10/21,NURSE - BAND 5 - AGENCY,Ashby Ward (Bradgate Unit),HCL NURSING,HNSI0000809,911.83
Department of Health,Leicestershire Partnership NHS Trust,11/10/21,NURSE - BAND 2 - AGENCY,Aston Ward (Bradgate Unit),HCL NURSING,HNSI0000809,2178.14
Department of Health,Leicestershire Partnership NHS Trust,11/10/21,NURSE - BAND 5 - AGENCY,Aston Ward (Bradgate Unit),HCL NURSING,HNSI0000809,1040.20
Department of Health,Leicestershire Partnership NHS Trust,11/10/21,NURSE - BAND 2 - AGENCY,Beaumont Ward - Bradgate Unit,HCL NURSING,HNSI0000809,3150.81
Department of Health,Leicestershire Partnership NHS Trust,11/10/21,NURSE - BAND 5 - AGENCY,Beaumont Ward - Bradgate Unit,HCL NURSING,HNSI0000809,2592.65
Department of Health,Leicestershire Partnership NHS Trust,11/10/21,NURSE - BAND 2 - AGENCY,Belvoir Psychiatric Intensive Care Unit,HCL NURSING,HNSI0000809,2870.02
Department of Health,Leicestershire Partnership NHS Trust,11/10/21,NURSE - BAND 5 - AGENCY,Belvoir Psychiatric Intensive Care Unit,HCL NURSING,HNSI0000809,2852.16
Department of Health,Leicestershire Partnership NHS Trust,11/10/21,NURSE - BAND 2 - AGENCY,Cedar (Willows),HCL NURSING,HNSI0000809,174.73
Department of Health,Leicestershire Partnership NHS Trust,11/10/21,Nurse - Band 6 -Agency,City West CMHT MHSOP,HCL NURSING,HNSI0000809,1046.25
Department of Health,Leicestershire Partnership NHS Trust,11/10/21,NURSE - BAND 2 - AGENCY,Coleman Ward,HCL NURSING,HNSI0000809,8600.01
Department of Health,Leicestershire Partnership NHS Trust,11/10/21,NURSE - BAND 5 - AGENCY,Coleman Ward,HCL NURSING,HNSI0000809,6488.67
Department of Health,Leicestershire Partnership NHS Trust,11/10/21,NURSE - BAND 2 - AGENCY,Griffin Ward (HPC),HCL NURSING,HNSI0000809,4478.37
Department of Health,Leicestershire Partnership NHS Trust,11/10/21,NURSE - BAND 5 - AGENCY,Griffin Ward (HPC),HCL NURSING,HNSI0000809,370.40
Department of Health,Leicestershire Partnership NHS Trust,11/10/21,NURSE - BAND 2 - AGENCY,Heather Ward,HCL NURSING,HNSI0000809,2933.59
Department of Health,Leicestershire Partnership NHS Trust,11/10/21,NURSE - BAND 5 - AGENCY,Heather Ward,HCL NURSING,HNSI0000809,2276.49
Department of Health,Leicestershire Partnership NHS Trust,11/10/21,NURSE - BAND 2 - AGENCY,Kirby Ward,HCL NURSING,HNSI0000809,1823.55
Department of Health,Leicestershire Partnership NHS Trust,11/10/21,NURSE - BAND 5 - AGENCY,Kirby Ward,HCL NURSING,HNSI0000809,2131.62
Department of Health,Leicestershire Partnership NHS Trust,11/10/21,NURSE - BAND 5 - AGENCY,Mental Health Liaison Team,HCL NURSING,HNSI0000809,649.70
Department of Health,Leicestershire Partnership NHS Trust,11/10/21,NURSE - BAND 2 - AGENCY,Mill Lodge,HCL NURSING,HNSI0000809,2998.02
Department of Health,Leicestershire Partnership NHS Trust,11/10/21,NURSE - BAND 5 - AGENCY,Mill Lodge,HCL NURSING,HNSI0000809,1948.80
Department of Health,Leicestershire Partnership NHS Trust,11/10/21,NURSE - BAND 2 - AGENCY,Phoenix Ward (HPC),HCL NURSING,HNSI0000809,1124.65
Department of Health,Leicestershire Partnership NHS Trust,11/10/21,NURSE - BAND 5 - AGENCY,Phoenix Ward (HPC),HCL NURSING,HNSI0000809,1938.89
Department of Health,Leicestershire Partnership NHS Trust,11/10/21,NURSE - BAND 5 - AGENCY,Place Of Safety Assessment Unit,HCL NURSING,HNSI0000809,835.67
Department of Health,Leicestershire Partnership NHS Trust,11/10/21,NURSE - BAND 5 - AGENCY,Stewart House,HCL NURSING,HNSI0000809,927.30
Department of Health,Leicestershire Partnership NHS Trust,11/10/21,NURSE - BAND 2 - AGENCY,Thornton Ward - Bradgate Unit,HCL NURSING,HNSI0000809,642.58
Department of Health,Leicestershire Partnership NHS Trust,11/10/21,NURSE - BAND 5 - AGENCY,Thornton Ward - Bradgate Unit,HCL NURSING,HNSI0000809,650.65
Department of Health,Leicestershire Partnership NHS Trust,11/10/21,NURSE - BAND 2 - AGENCY,Urgent Care Hub,HCL NURSING,HNSI0000809,453.03
Department of Health,Leicestershire Partnership NHS Trust,11/10/21,NURSE - BAND 5 - AGENCY,Watermead Ward (Bradgate Unit),HCL NURSING,HNSI0000809,1196.30
Department of Health,Leicestershire Partnership NHS Trust,11/10/21,NURSE - BAND 2 - AGENCY,Welford Ward,HCL NURSING,HNSI0000809,2391.21
Department of Health,Leicestershire Partnership NHS Trust,11/10/21,NURSE - BAND 5 - AGENCY,Welford Ward,HCL NURSING,HNSI0000809,830.82
Department of Health,Leicestershire Partnership NHS Trust,11/10/21,Nurse - Band 6 -Agency,CAMHS Waiting List Monies,HCL SOCIAL CARE,HWSI0000848,27908.46
Department of Health,Leicestershire Partnership NHS Trust,11/10/21,Nurse - Band 6 -Agency,CAMHS Waiting List Monies,HCL SOCIAL CARE,HWSI0000839,35493.56
Department of Health,Leicestershire Partnership NHS Trust,11/10/21,Crs_NHS_LT1y -Resus Inventory Supplied.,Balance Sheet Collection,SUPPLY CHAIN CO LTD,1122122403,29169.23
Department of Health,Leicestershire Partnership NHS Trust,11/10/21,Network Costs - WAN Maint,HIS Infrastructure,VIRGIN MEDIA BUSINESS,262421-186,36604.98
Department of Health,Leicestershire Partnership NHS Trust,12/10/21,WIP Project Not in BS - Buildings excl Dwellings,Work in Progress,TILBURY DOUGLAS CONSTRUCTION LTD,21100165,116344.00
Department of Health,Leicestershire Partnership NHS Trust,14/10/21,Landline Telephone Rental / Calls,"Beaumont Leys Health Centre (P94, LPT)",VIRGIN MEDIA BUSINESS,853083001/004/1021,373.18
Department of Health,Leicestershire Partnership NHS Trust,14/10/21,Landline Telephone Rental / Calls,"Bennion Centre (including Forest Grange Day Unit) (P8, LPT)",VIRGIN MEDIA BUSINESS,853083001/004/1021,7.74
Department of Health,Leicestershire Partnership NHS Trust,14/10/21,Landline Telephone Rental / Calls,"Bradgate Unit (including Glenvale day Unit) (P7, LPT)",VIRGIN MEDIA BUSINESS,853083001/004/1021,8465.86
Department of Health,Leicestershire Partnership NHS Trust,14/10/21,Landline Telephone Rental / Calls,Braunstone Health and Social Care Centre (Part) (PROPCO),VIRGIN MEDIA BUSINESS,853083001/004/1021,1032.49
Department of Health,Leicestershire Partnership NHS Trust,14/10/21,Landline Telephone Rental / Calls,Bridge Park Plaza - First Floor (LPT),VIRGIN MEDIA BUSINESS,853083001/004/1021,4536.95
Department of Health,Leicestershire Partnership NHS Trust,14/10/21,Landline Telephone Rental / Calls,"Coalville Community Hospital (P138, LPT)",VIRGIN MEDIA BUSINESS,853083001/004/1021,1584.31
Department of Health,Leicestershire Partnership NHS Trust,14/10/21,Landline Telephone Rental / Calls,"Coalville Health Centre (P121, LPT)",VIRGIN MEDIA BUSINESS,853083001/004/1021,164.20
Department of Health,Leicestershire Partnership NHS Trust,14/10/21,Landline Telephone Rental / Calls,County Hall,VIRGIN MEDIA BUSINESS,853083001/004/1021,6548.90
Department of Health,Leicestershire Partnership NHS Trust,14/10/21,Landline Telephone Rental / Calls,Estates & Facilities Central,VIRGIN MEDIA BUSINESS,853083001/004/1021,9.47
Department of Health,Leicestershire Partnership NHS Trust,14/10/21,Landline Telephone Rental / Calls,"Evington Centre (P6, LPT)",VIRGIN MEDIA BUSINESS,853083001/004/1021,1743.93
Department of Health,Leicestershire Partnership NHS Trust,14/10/21,Landline Telephone Rental / Calls,HIS,VIRGIN MEDIA BUSINESS,853083001/004/1021,3146.89
Department of Health,Leicestershire Partnership NHS Trust,14/10/21,Landline Telephone Rental / Calls,"Hawthorne Centre - Coalville (P14, LPT)",VIRGIN MEDIA BUSINESS,853083001/004/1021,504.80
Department of Health,Leicestershire Partnership NHS Trust,14/10/21,Landline Telephone Rental / Calls,"Hinckley and Bosworth Community Hospital (Sunnyside) (P133, LPT)",VIRGIN MEDIA BUSINESS,853083001/004/1021,1087.28
Department of Health,Leicestershire Partnership NHS Trust,14/10/21,Landline Telephone Rental / Calls,Hood Park Leisure Centre Clinic,VIRGIN MEDIA BUSINESS,853083001/004/1021,24.92
Department of Health,Leicestershire Partnership NHS Trust,14/10/21,Landline Telephone Rental / Calls,"Hynca Lodge (P33, LPT)",VIRGIN MEDIA BUSINESS,853083001/004/1021,355.91
Department of Health,Leicestershire Partnership NHS Trust,14/10/21,Landline Telephone Rental / Calls,"Legion House, Ashby",VIRGIN MEDIA BUSINESS,853083001/004/1021,46.07
Department of Health,Leicestershire Partnership NHS Trust,14/10/21,Landline Telephone Rental / Calls,"Loughborough Hospital (P136, LPT)",VIRGIN MEDIA BUSINESS,853083001/004/1021,4669.33
Department of Health,Leicestershire Partnership NHS Trust,14/10/21,Landline Telephone Rental / Calls,Mawson House (LPT),VIRGIN MEDIA BUSINESS,853083001/004/1021,472.26
Department of Health,Leicestershire Partnership NHS Trust,14/10/21,Landline Telephone Rental / Calls,Merlyn Vaz Centre (CHP),VIRGIN MEDIA BUSINESS,853083001/004/1021,1450.51
Department of Health,Leicestershire Partnership NHS Trust,14/10/21,Landline Telephone Rental / Calls,"Mett Centre (P49, LPT)",VIRGIN MEDIA BUSINESS,853083001/004/1021,80.27
Department of Health,Leicestershire Partnership NHS Trust,14/10/21,Landline Telephone Rental / Calls,NSPCC Training Cente,VIRGIN MEDIA BUSINESS,853083001/004/1021,159.96
Department of Health,Leicestershire Partnership NHS Trust,14/10/21,Landline Telephone Rental / Calls,New Parks Health Centre (PROPCO),VIRGIN MEDIA BUSINESS,853083001/004/1021,1676.81
Department of Health,Leicestershire Partnership NHS Trust,14/10/21,Landline Telephone Rental / Calls,"OSL House (P54, LPT)",VIRGIN MEDIA BUSINESS,853083001/004/1021,995.23
Department of Health,Leicestershire Partnership NHS Trust,14/10/21,Landline Telephone Rental / Calls,"Orchard Resource Centre (P15, LPT)",VIRGIN MEDIA BUSINESS,853083001/004/1021,723.59
Department of Health,Leicestershire Partnership NHS Trust,14/10/21,Landline Telephone Rental / Calls,Pasley Road Health Centre (PROPCO),VIRGIN MEDIA BUSINESS,853083001/004/1021,110.56
Department of Health,Leicestershire Partnership NHS Trust,14/10/21,Landline Telephone Rental / Calls,"Prince Philip House (P96, LPT)",VIRGIN MEDIA BUSINESS,853083001/004/1021,1796.86
Department of Health,Leicestershire Partnership NHS Trust,14/10/21,Landline Telephone Rental / Calls,Rushey Mead Health Centre (PROPCO),VIRGIN MEDIA BUSINESS,853083001/004/1021,81.01
Department of Health,Leicestershire Partnership NHS Trust,14/10/21,Landline Telephone Rental / Calls,"Shepshed Health Centre (P123, LPT)",VIRGIN MEDIA BUSINESS,853083001/004/1021,10.40
Department of Health,Leicestershire Partnership NHS Trust,14/10/21,Landline Telephone Rental / Calls,"Springfield Road Health Centre (P92, LPT)",VIRGIN MEDIA BUSINESS,853083001/004/1021,361.67
Department of Health,Leicestershire Partnership NHS Trust,14/10/21,Landline Telephone Rental / Calls,"St Peters Health Center (Part 1st and 2nd floors) (P66, LPT)",VIRGIN MEDIA BUSINESS,853083001/004/1021,2104.64
Department of Health,Leicestershire Partnership NHS Trust,14/10/21,Landline Telephone Rental / Calls,"Stewart House (P61, LPT)",VIRGIN MEDIA BUSINESS,853083001/004/1021,7.74
Department of Health,Leicestershire Partnership NHS Trust,14/10/21,Landline Telephone Rental / Calls,"Swithland House - London Road 352 (P44, LPT)",VIRGIN MEDIA BUSINESS,853083001/004/1021,437.85
Department of Health,Leicestershire Partnership NHS Trust,14/10/21,Landline Telephone Rental / Calls,"The Cedars (P19, LPT)",VIRGIN MEDIA BUSINESS,853083001/004/1021,833.50
Department of Health,Leicestershire Partnership NHS Trust,14/10/21,Landline Telephone Rental / Calls,"The Willows - Cordelia Close (P22, LPT)",VIRGIN MEDIA BUSINESS,853083001/004/1021,439.69
Department of Health,Leicestershire Partnership NHS Trust,14/10/21,Landline Telephone Rental / Calls,"Valentine Centre (P3, LPT)",VIRGIN MEDIA BUSINESS,853083001/004/1021,1981.76
Department of Health,Leicestershire Partnership NHS Trust,14/10/21,Landline Telephone Rental / Calls,Warren Park Way 25 (PROPCO),VIRGIN MEDIA BUSINESS,853083001/004/1021,766.68
Department of Health,Leicestershire Partnership NHS Trust,14/10/21,Landline Telephone Rental / Calls,"Westcotes Group -Westcotes House (P78, LPT)",VIRGIN MEDIA BUSINESS,853083001/004/1021,1795.17
Department of Health,Leicestershire Partnership NHS Trust,14/10/21,Landline Telephone Rental / Calls,"Winstanley Drive Health Centre (P8, LPT)",VIRGIN MEDIA BUSINESS,853083001/004/1021,401.40
Department of Health,Leicestershire Partnership NHS Trust,15/10/21,Nurse - Band 6 -Agency,AMH - Central Access Point,HCL NURSING,HNSI0000821,4999.26
Department of Health,Leicestershire Partnership NHS Trust,15/10/21,Nurse - Band 6 -Agency,Adult City East CMHT - Merlyn Vaz,HCL NURSING,HNSI0000821,3248.96
Department of Health,Leicestershire Partnership NHS Trust,15/10/21,Nurse - Band 6 -Agency,Adult County West Leicestershire CMHT,HCL NURSING,HNSI0000821,1069.97
Department of Health,Leicestershire Partnership NHS Trust,15/10/21,NURSE - BAND 2 - AGENCY,Agnes Unit Management,HCL NURSING,HNSI0000821,20582.23
Department of Health,Leicestershire Partnership NHS Trust,15/10/21,NURSE - BAND 5 - AGENCY,Agnes Unit Management,HCL NURSING,HNSI0000821,12816.45
Department of Health,Leicestershire Partnership NHS Trust,15/10/21,NURSE - BAND 2 - AGENCY,Ashby Ward (Bradgate Unit),HCL NURSING,HNSI0000821,1583.69
Department of Health,Leicestershire Partnership NHS Trust,15/10/21,NURSE - BAND 5 - AGENCY,Ashby Ward (Bradgate Unit),HCL NURSING,HNSI0000821,2212.70
Department of Health,Leicestershire Partnership NHS Trust,15/10/21,NURSE - BAND 5 - AGENCY,Aston Ward (Bradgate Unit),HCL NURSING,HNSI0000821,1029.70
Department of Health,Leicestershire Partnership NHS Trust,15/10/21,NURSE - BAND 2 - AGENCY,Beaumont Ward - Bradgate Unit,HCL NURSING,HNSI0000821,3086.57
Department of Health,Leicestershire Partnership NHS Trust,15/10/21,NURSE - BAND 5 - AGENCY,Beaumont Ward - Bradgate Unit,HCL NURSING,HNSI0000821,1354.83
Department of Health,Leicestershire Partnership NHS Trust,15/10/21,NURSE - BAND 2 - AGENCY,Belvoir Psychiatric Intensive Care Unit,HCL NURSING,HNSI0000821,1572.73
Department of Health,Leicestershire Partnership NHS Trust,15/10/21,NURSE - BAND 5 - AGENCY,Belvoir Psychiatric Intensive Care Unit,HCL NURSING,HNSI0000821,4490.25
Department of Health,Leicestershire Partnership NHS Trust,15/10/21,NURSE - BAND 2 - AGENCY,Cedar (Willows),HCL NURSING,HNSI0000821,937.29
Department of Health,Leicestershire Partnership NHS Trust,15/10/21,Nurse - Band 6 -Agency,City West CMHT MHSOP,HCL NURSING,HNSI0000821,1046.25
Department of Health,Leicestershire Partnership NHS Trust,15/10/21,NURSE - BAND 2 - AGENCY,Coleman Ward,HCL NURSING,HNSI0000821,15878.72
Department of Health,Leicestershire Partnership NHS Trust,15/10/21,NURSE - BAND 5 - AGENCY,Coleman Ward,HCL NURSING,HNSI0000821,2850.74
Department of Health,Leicestershire Partnership NHS Trust,15/10/21,NURSE - BAND 2 - AGENCY,Griffin Ward (HPC),HCL NURSING,HNSI0000821,1636.21
Department of Health,Leicestershire Partnership NHS Trust,15/10/21,NURSE - BAND 5 - AGENCY,Griffin Ward (HPC),HCL NURSING,HNSI0000821,1600.19
Department of Health,Leicestershire Partnership NHS Trust,15/10/21,NURSE - BAND 2 - AGENCY,Heather Ward,HCL NURSING,HNSI0000821,2840.19
Department of Health,Leicestershire Partnership NHS Trust,15/10/21,NURSE - BAND 5 - AGENCY,Heather Ward,HCL NURSING,HNSI0000821,2085.17
Department of Health,Leicestershire Partnership NHS Trust,15/10/21,NURSE - BAND 2 - AGENCY,Kirby Ward,HCL NURSING,HNSI0000821,2321.84
Department of Health,Leicestershire Partnership NHS Trust,15/10/21,NURSE - BAND 5 - AGENCY,Kirby Ward,HCL NURSING,HNSI0000821,1889.10
Department of Health,Leicestershire Partnership NHS Trust,15/10/21,NURSE - BAND 2 - AGENCY,Mill Lodge,HCL NURSING,HNSI0000821,4489.84
Department of Health,Leicestershire Partnership NHS Trust,15/10/21,NURSE - BAND 5 - AGENCY,Mill Lodge,HCL NURSING,HNSI0000821,2422.65
Department of Health,Leicestershire Partnership NHS Trust,15/10/21,NURSE - BAND 2 - AGENCY,Phoenix Ward (HPC),HCL NURSING,HNSI0000821,4643.30
Department of Health,Leicestershire Partnership NHS Trust,15/10/21,NURSE - BAND 5 - AGENCY,Phoenix Ward (HPC),HCL NURSING,HNSI0000821,2656.70
Department of Health,Leicestershire Partnership NHS Trust,15/10/21,NURSE - BAND 2 - AGENCY,Place Of Safety Assessment Unit,HCL NURSING,HNSI0000821,1935.05
Department of Health,Leicestershire Partnership NHS Trust,15/10/21,NURSE - BAND 5 - AGENCY,Place Of Safety Assessment Unit,HCL NURSING,HNSI0000821,2988.77
Department of Health,Leicestershire Partnership NHS Trust,15/10/21,NURSE - BAND 2 - AGENCY,Stewart House,HCL NURSING,HNSI0000821,805.21
Department of Health,Leicestershire Partnership NHS Trust,15/10/21,NURSE - BAND 5 - AGENCY,Stewart House,HCL NURSING,HNSI0000821,1043.32
Department of Health,Leicestershire Partnership NHS Trust,15/10/21,NURSE - BAND 2 - AGENCY,Thornton Ward - Bradgate Unit,HCL NURSING,HNSI0000821,493.07
Department of Health,Leicestershire Partnership NHS Trust,15/10/21,NURSE - BAND 5 - AGENCY,Thornton Ward - Bradgate Unit,HCL NURSING,HNSI0000821,532.35
Department of Health,Leicestershire Partnership NHS Trust,15/10/21,NURSE - BAND 2 - AGENCY,Watermead Ward (Bradgate Unit),HCL NURSING,HNSI0000821,274.13
Department of Health,Leicestershire Partnership NHS Trust,15/10/21,NURSE - BAND 5 - AGENCY,Watermead Ward (Bradgate Unit),HCL NURSING,HNSI0000821,2727.55
Department of Health,Leicestershire Partnership NHS Trust,15/10/21,NURSE - BAND 2 - AGENCY,Welford Ward,HCL NURSING,HNSI0000821,174.72
Department of Health,Leicestershire Partnership NHS Trust,15/10/21,Nurse - Band 6 -Agency,CAMHS HUB / CAP,HCL SOCIAL CARE,HWSI0000865,17153.51
Department of Health,Leicestershire Partnership NHS Trust,15/10/21,Nurse - Band 6 -Agency,CAMHS Waiting List Monies,HCL SOCIAL CARE,HWSI0000865,21743.43
Department of Health,Leicestershire Partnership NHS Trust,15/10/21,Nurse - Band 6 -Agency,Crisis Response and Home Treatment,HCL SOCIAL CARE,HWSI0000865,2209.08
Department of Health,Leicestershire Partnership NHS Trust,18/10/21,Photocopying,Estates & Facilities Central,LEXMARK INTERNATIONAL LTD,900650301841,34382.75
Department of Health,Leicestershire Partnership NHS Trust,19/10/21,WIP Project Not in BS - Information Technology,Work in Progress,DELL COMPUTERS,7402752988,26037.60
Department of Health,Leicestershire Partnership NHS Trust,19/10/21,Services / Recharges from NHS Trusts,Inter Unit I & E Distribution,UHL NHS TRUST (RWE),L0254252,144923.71
Department of Health,Leicestershire Partnership NHS Trust,19/10/21,WIP Project Not in BS - Buildings excl Dwellings,Work in Progress,TILBURY DOUGLAS CONSTRUCTION LTD,21100169,46028.44
Department of Health,Leicestershire Partnership NHS Trust,19/10/21,WIP Project Not in BS - Buildings excl Dwellings,Work in Progress,TILBURY DOUGLAS CONSTRUCTION LTD,21100355,123080.99
Department of Health,Leicestershire Partnership NHS Trust,19/10/21,WIP Project Not in BS - Buildings excl Dwellings,Work in Progress,TILBURY DOUGLAS CONSTRUCTION LTD,21100356,55701.64
Department of Health,Leicestershire Partnership NHS Trust,20/10/21,Med GP Trainees,Medical Trainees,ST.HELENS & KNOWSLEY NHS TRUST,16808788,75000.00
Department of Health,Leicestershire Partnership NHS Trust,20/10/21,NURSE - BAND 2 - AGENCY,Beechwood Ward,HCL NURSING,HNSI0000817,5601.21
Department of Health,Leicestershire Partnership NHS Trust,20/10/21,NURSE - BAND 5 - AGENCY,Beechwood Ward,HCL NURSING,HNSI0000817,749.06
Department of Health,Leicestershire Partnership NHS Trust,20/10/21,NURSE - BAND 5 - AGENCY,City & County Continence Service,HCL NURSING,HNSI0000817,900.82
Department of Health,Leicestershire Partnership NHS Trust,20/10/21,NURSE - BAND 5 - AGENCY,City Planned Care - East,HCL NURSING,HNSI0000817,13723.08
Department of Health,Leicestershire Partnership NHS Trust,20/10/21,NURSE - BAND 5 - AGENCY,City Planned Care - West,HCL NURSING,HNSI0000817,10685.97
Department of Health,Leicestershire Partnership NHS Trust,20/10/21,NURSE - BAND 2 - AGENCY,Clarendon Ward,HCL NURSING,HNSI0000817,3062.74
Department of Health,Leicestershire Partnership NHS Trust,20/10/21,NURSE - BAND 5 - AGENCY,Clarendon Ward,HCL NURSING,HNSI0000817,5506.98
Department of Health,Leicestershire Partnership NHS Trust,20/10/21,NURSE - BAND 2 - AGENCY,Coalville Snibston Ward,HCL NURSING,HNSI0000817,2823.89
Department of Health,Leicestershire Partnership NHS Trust,20/10/21,NURSE - BAND 5 - AGENCY,Coalville Snibston Ward,HCL NURSING,HNSI0000817,1905.34
Department of Health,Leicestershire Partnership NHS Trust,20/10/21,NURSE - BAND 2 - AGENCY,Coalville Ward 2,HCL NURSING,HNSI0000817,640.86
Department of Health,Leicestershire Partnership NHS Trust,20/10/21,NURSE - BAND 5 - AGENCY,Coalville Ward 2,HCL NURSING,HNSI0000817,786.68
Department of Health,Leicestershire Partnership NHS Trust,20/10/21,NURSE - BAND 2 - AGENCY,Dalgliesh Ward,HCL NURSING,HNSI0000817,642.92
Department of Health,Leicestershire Partnership NHS Trust,20/10/21,NURSE - BAND 5 - AGENCY,Dalgliesh Ward,HCL NURSING,HNSI0000817,1544.19
Department of Health,Leicestershire Partnership NHS Trust,20/10/21,NURSE - BAND 2 - AGENCY,H&B Comm Hosp East Ward,HCL NURSING,HNSI0000817,7510.03
Department of Health,Leicestershire Partnership NHS Trust,20/10/21,NURSE - BAND 5 - AGENCY,H&B Comm Hosp East Ward,HCL NURSING,HNSI0000817,5207.10
Department of Health,Leicestershire Partnership NHS Trust,20/10/21,NURSE - BAND 2 - AGENCY,H&B Comm Hosp North Ward,HCL NURSING,HNSI0000817,5532.06
Department of Health,Leicestershire Partnership NHS Trust,20/10/21,NURSE - BAND 5 - AGENCY,H&B Comm Hosp North Ward,HCL NURSING,HNSI0000817,4218.10
Department of Health,Leicestershire Partnership NHS Trust,20/10/21,NURSE - BAND 2 - AGENCY,Lough Swithland Ward,HCL NURSING,HNSI0000817,443.04
Department of Health,Leicestershire Partnership NHS Trust,20/10/21,NURSE - BAND 5 - AGENCY,Lough Swithland Ward,HCL NURSING,HNSI0000817,1907.76
Department of Health,Leicestershire Partnership NHS Trust,20/10/21,NURSE - BAND 2 - AGENCY,Rutland Ward Nursing,HCL NURSING,HNSI0000817,2617.92
Department of Health,Leicestershire Partnership NHS Trust,20/10/21,NURSE - BAND 5 - AGENCY,Rutland Ward Nursing,HCL NURSING,HNSI0000817,1630.35
Department of Health,Leicestershire Partnership NHS Trust,20/10/21,NURSE - BAND 2 - AGENCY,St Lukes Stroke Ward,HCL NURSING,HNSI0000817,3195.22
Department of Health,Leicestershire Partnership NHS Trust,20/10/21,NURSE - BAND 5 - AGENCY,St Lukes Stroke Ward,HCL NURSING,HNSI0000817,449.54
Department of Health,Leicestershire Partnership NHS Trust,20/10/21,NURSE - BAND 2 - AGENCY,St Lukes Ward 3,HCL NURSING,HNSI0000817,862.05
Department of Health,Leicestershire Partnership NHS Trust,20/10/21,NURSE - BAND 5 - AGENCY,St Lukes Ward 3,HCL NURSING,HNSI0000817,4144.09
Department of Health,Leicestershire Partnership NHS Trust,20/10/21,NURSE - BAND 2 - AGENCY,Wakerley Ward,HCL NURSING,HNSI0000817,2914.90
Department of Health,Leicestershire Partnership NHS Trust,20/10/21,NURSE - BAND 5 - AGENCY,Wakerley Ward,HCL NURSING,HNSI0000817,10566.35
Department of Health,Leicestershire Partnership NHS Trust,20/10/21,NURSE - BAND 2 - AGENCY,Beechwood Ward,HCL NURSING,HNSI0000822,6707.13
Department of Health,Leicestershire Partnership NHS Trust,20/10/21,NURSE - BAND 5 - AGENCY,Beechwood Ward,HCL NURSING,HNSI0000822,2344.45
Department of Health,Leicestershire Partnership NHS Trust,20/10/21,NURSE - BAND 5 - AGENCY,City Planned Care - East,HCL NURSING,HNSI0000822,11687.77
Department of Health,Leicestershire Partnership NHS Trust,20/10/21,NURSE - BAND 5 - AGENCY,City Planned Care - West,HCL NURSING,HNSI0000822,9713.53
Department of Health,Leicestershire Partnership NHS Trust,20/10/21,NURSE - BAND 2 - AGENCY,Clarendon Ward,HCL NURSING,HNSI0000822,3163.98
Department of Health,Leicestershire Partnership NHS Trust,20/10/21,NURSE - BAND 5 - AGENCY,Clarendon Ward,HCL NURSING,HNSI0000822,4900.12
Department of Health,Leicestershire Partnership NHS Trust,20/10/21,NURSE - BAND 2 - AGENCY,Coalville Snibston Ward,HCL NURSING,HNSI0000822,2261.64
Department of Health,Leicestershire Partnership NHS Trust,20/10/21,NURSE - BAND 5 - AGENCY,Coalville Snibston Ward,HCL NURSING,HNSI0000822,2722.23
Department of Health,Leicestershire Partnership NHS Trust,20/10/21,NURSE - BAND 2 - AGENCY,Coalville Ward 2,HCL NURSING,HNSI0000822,823.25
Department of Health,Leicestershire Partnership NHS Trust,20/10/21,NURSE - BAND 5 - AGENCY,Coalville Ward 2,HCL NURSING,HNSI0000822,406.21
Department of Health,Leicestershire Partnership NHS Trust,20/10/21,NURSE - BAND 2 - AGENCY,Dalgliesh Ward,HCL NURSING,HNSI0000822,2857.25
Department of Health,Leicestershire Partnership NHS Trust,20/10/21,NURSE - BAND 5 - AGENCY,Dalgliesh Ward,HCL NURSING,HNSI0000822,514.85
Department of Health,Leicestershire Partnership NHS Trust,20/10/21,NURSE - BAND 2 - AGENCY,H&B Comm Hosp East Ward,HCL NURSING,HNSI0000822,3289.30
Department of Health,Leicestershire Partnership NHS Trust,20/10/21,NURSE - BAND 5 - AGENCY,H&B Comm Hosp East Ward,HCL NURSING,HNSI0000822,902.50
Department of Health,Leicestershire Partnership NHS Trust,20/10/21,NURSE - BAND 2 - AGENCY,H&B Comm Hosp North Ward,HCL NURSING,HNSI0000822,3037.66
Department of Health,Leicestershire Partnership NHS Trust,20/10/21,NURSE - BAND 5 - AGENCY,H&B Comm Hosp North Ward,HCL NURSING,HNSI0000822,3665.88
Department of Health,Leicestershire Partnership NHS Trust,20/10/21,NURSE - BAND 2 - AGENCY,Lough Swithland Ward,HCL NURSING,HNSI0000822,1274.42
Department of Health,Leicestershire Partnership NHS Trust,20/10/21,NURSE - BAND 5 - AGENCY,Lough Swithland Ward,HCL NURSING,HNSI0000822,1198.48
Department of Health,Leicestershire Partnership NHS Trust,20/10/21,NURSE - BAND 2 - AGENCY,Rutland Ward Nursing,HCL NURSING,HNSI0000822,433.62
Department of Health,Leicestershire Partnership NHS Trust,20/10/21,NURSE - BAND 5 - AGENCY,Rutland Ward Nursing,HCL NURSING,HNSI0000822,911.41
Department of Health,Leicestershire Partnership NHS Trust,20/10/21,NURSE - BAND 2 - AGENCY,St Lukes Stroke Ward,HCL NURSING,HNSI0000822,3277.13
Department of Health,Leicestershire Partnership NHS Trust,20/10/21,NURSE - BAND 5 - AGENCY,St Lukes Stroke Ward,HCL NURSING,HNSI0000822,1029.70
Department of Health,Leicestershire Partnership NHS Trust,20/10/21,NURSE - BAND 2 - AGENCY,St Lukes Ward 3,HCL NURSING,HNSI0000822,1484.29
Department of Health,Leicestershire Partnership NHS Trust,20/10/21,NURSE - BAND 5 - AGENCY,St Lukes Ward 3,HCL NURSING,HNSI0000822,1002.56
Department of Health,Leicestershire Partnership NHS Trust,20/10/21,NURSE - BAND 2 - AGENCY,Wakerley Ward,HCL NURSING,HNSI0000822,2134.20
Department of Health,Leicestershire Partnership NHS Trust,20/10/21,NURSE - BAND 5 - AGENCY,Wakerley Ward,HCL NURSING,HNSI0000822,8511.33
Department of Health,Leicestershire Partnership NHS Trust,22/10/21,Nurse - Band 6 -Agency,AMH - Central Access Point,HCL NURSING,HNSI0000829,3699.23
Department of Health,Leicestershire Partnership NHS Trust,22/10/21,Nurse - Band 6 -Agency,Adult City East CMHT - Merlyn Vaz,HCL NURSING,HNSI0000829,4111.09
Department of Health,Leicestershire Partnership NHS Trust,22/10/21,Nurse - Band 6 -Agency,Adult County Charnwood CMHT - Loughborough Base,HCL NURSING,HNSI0000829,213.99
Department of Health,Leicestershire Partnership NHS Trust,22/10/21,Nurse - Band 6 -Agency,Adult County West Leicestershire CMHT,HCL NURSING,HNSI0000829,1069.97
Department of Health,Leicestershire Partnership NHS Trust,22/10/21,NURSE - BAND 2 - AGENCY,Agnes Unit Management,HCL NURSING,HNSI0000829,23131.02
Department of Health,Leicestershire Partnership NHS Trust,22/10/21,NURSE - BAND 5 - AGENCY,Agnes Unit Management,HCL NURSING,HNSI0000829,16361.76
Department of Health,Leicestershire Partnership NHS Trust,22/10/21,NURSE - BAND 2 - AGENCY,Ashby Ward (Bradgate Unit),HCL NURSING,HNSI0000829,931.01
Department of Health,Leicestershire Partnership NHS Trust,22/10/21,NURSE - BAND 5 - AGENCY,Ashby Ward (Bradgate Unit),HCL NURSING,HNSI0000829,1496.74
Department of Health,Leicestershire Partnership NHS Trust,22/10/21,NURSE - BAND 2 - AGENCY,Aston Ward (Bradgate Unit),HCL NURSING,HNSI0000829,2064.11
Department of Health,Leicestershire Partnership NHS Trust,22/10/21,NURSE - BAND 5 - AGENCY,Aston Ward (Bradgate Unit),HCL NURSING,HNSI0000829,3652.50
Department of Health,Leicestershire Partnership NHS Trust,22/10/21,NURSE - BAND 2 - AGENCY,Beaumont Ward - Bradgate Unit,HCL NURSING,HNSI0000829,6078.28
Department of Health,Leicestershire Partnership NHS Trust,22/10/21,NURSE - BAND 5 - AGENCY,Beaumont Ward - Bradgate Unit,HCL NURSING,HNSI0000829,2717.42
Department of Health,Leicestershire Partnership NHS Trust,22/10/21,NURSE - BAND 2 - AGENCY,Belvoir Psychiatric Intensive Care Unit,HCL NURSING,HNSI0000829,3089.25
Department of Health,Leicestershire Partnership NHS Trust,22/10/21,NURSE - BAND 5 - AGENCY,Belvoir Psychiatric Intensive Care Unit,HCL NURSING,HNSI0000829,3168.20
Department of Health,Leicestershire Partnership NHS Trust,22/10/21,NURSE - BAND 2 - AGENCY,Cedar (Willows),HCL NURSING,HNSI0000829,713.70
Department of Health,Leicestershire Partnership NHS Trust,22/10/21,Nurse - Band 6 -Agency,City West CMHT MHSOP,HCL NURSING,HNSI0000829,1046.25
Department of Health,Leicestershire Partnership NHS Trust,22/10/21,NURSE - BAND 2 - AGENCY,Coleman Ward,HCL NURSING,HNSI0000829,12820.98
Department of Health,Leicestershire Partnership NHS Trust,22/10/21,NURSE - BAND 5 - AGENCY,Coleman Ward,HCL NURSING,HNSI0000829,8874.92
Department of Health,Leicestershire Partnership NHS Trust,22/10/21,Nurse - Band 6 -Agency,Crisis Resolution,HCL NURSING,HNSI0000829,1832.75
Department of Health,Leicestershire Partnership NHS Trust,22/10/21,NURSE - BAND 2 - AGENCY,Griffin Ward (HPC),HCL NURSING,HNSI0000829,2265.92
Department of Health,Leicestershire Partnership NHS Trust,22/10/21,NURSE - BAND 5 - AGENCY,Griffin Ward (HPC),HCL NURSING,HNSI0000829,3212.11
Department of Health,Leicestershire Partnership NHS Trust,22/10/21,NURSE - BAND 2 - AGENCY,Heather Ward,HCL NURSING,HNSI0000829,4776.48
Department of Health,Leicestershire Partnership NHS Trust,22/10/21,NURSE - BAND 5 - AGENCY,Heather Ward,HCL NURSING,HNSI0000829,2806.89
Department of Health,Leicestershire Partnership NHS Trust,22/10/21,NURSE - BAND 2 - AGENCY,Kirby Ward,HCL NURSING,HNSI0000829,969.88
Department of Health,Leicestershire Partnership NHS Trust,22/10/21,NURSE - BAND 5 - AGENCY,Kirby Ward,HCL NURSING,HNSI0000829,1445.77
Department of Health,Leicestershire Partnership NHS Trust,22/10/21,NURSE - BAND 2 - AGENCY,Maple Ward,HCL NURSING,HNSI0000829,174.73
Department of Health,Leicestershire Partnership NHS Trust,22/10/21,Nurse - Band 6 -Agency,Mental Health Liaison Team,HCL NURSING,HNSI0000829,1522.92
Department of Health,Leicestershire Partnership NHS Trust,22/10/21,Nurse - Band 6 -Agency,Mental Health Triage Team,HCL NURSING,HNSI0000829,361.89
Department of Health,Leicestershire Partnership NHS Trust,22/10/21,NURSE - BAND 2 - AGENCY,Mill Lodge,HCL NURSING,HNSI0000829,8146.95
Department of Health,Leicestershire Partnership NHS Trust,22/10/21,NURSE - BAND 5 - AGENCY,Mill Lodge,HCL NURSING,HNSI0000829,2000.80
Department of Health,Leicestershire Partnership NHS Trust,22/10/21,NURSE - BAND 2 - AGENCY,Phoenix Ward (HPC),HCL NURSING,HNSI0000829,1818.24
Department of Health,Leicestershire Partnership NHS Trust,22/10/21,NURSE - BAND 5 - AGENCY,Phoenix Ward (HPC),HCL NURSING,HNSI0000829,2604.55
Department of Health,Leicestershire Partnership NHS Trust,22/10/21,NURSE - BAND 2 - AGENCY,Place Of Safety Assessment Unit,HCL NURSING,HNSI0000829,1406.71
Department of Health,Leicestershire Partnership NHS Trust,22/10/21,NURSE - BAND 5 - AGENCY,Place Of Safety Assessment Unit,HCL NURSING,HNSI0000829,806.99
Department of Health,Leicestershire Partnership NHS Trust,22/10/21,NURSE - BAND 2 - AGENCY,Stewart House,HCL NURSING,HNSI0000829,661.56
Department of Health,Leicestershire Partnership NHS Trust,22/10/21,NURSE - BAND 2 - AGENCY,Urgent Care Hub,HCL NURSING,HNSI0000829,690.86
Department of Health,Leicestershire Partnership NHS Trust,22/10/21,NURSE - BAND 2 - AGENCY,Watermead Ward (Bradgate Unit),HCL NURSING,HNSI0000829,1811.97
Department of Health,Leicestershire Partnership NHS Trust,22/10/21,NURSE - BAND 5 - AGENCY,Watermead Ward (Bradgate Unit),HCL NURSING,HNSI0000829,1869.73
Department of Health,Leicestershire Partnership NHS Trust,22/10/21,NURSE - BAND 2 - AGENCY,Welford Ward,HCL NURSING,HNSI0000829,477.63
Department of Health,Leicestershire Partnership NHS Trust,22/10/21,Nurse - Band 6 -Agency,CAMHS HUB / CAP,HCL SOCIAL CARE,HWSI0000876,13431.29
Department of Health,Leicestershire Partnership NHS Trust,22/10/21,Nurse - Band 6 -Agency,CAMHS Waiting List Monies,HCL SOCIAL CARE,HWSI0000876,20236.62
Department of Health,Leicestershire Partnership NHS Trust,22/10/21,Nurse - Band 6 -Agency,Crisis Response and Home Treatment,HCL SOCIAL CARE,HWSI0000876,1965.85
Department of Health,Leicestershire Partnership NHS Trust,22/10/21,NURSE - BAND 2 - AGENCY,CAMHS Inpatient Service,HCL NURSING,HNSI0000831,7807.65
Department of Health,Leicestershire Partnership NHS Trust,22/10/21,NURSE - BAND 5 - AGENCY,CAMHS Inpatient Service,HCL NURSING,HNSI0000831,1864.45
Department of Health,Leicestershire Partnership NHS Trust,22/10/21,NURSE - BAND 5 - AGENCY,CAMHS Learning Disabilities and Outreach Team,HCL NURSING,HNSI0000831,764.55
Department of Health,Leicestershire Partnership NHS Trust,22/10/21,Nurse - Band 6 -Agency,CAMHS Waiting List Monies,HCL NURSING,HNSI0000831,23651.26
Department of Health,Leicestershire Partnership NHS Trust,22/10/21,NURSE - BAND 2 - AGENCY,Langley Ward ED Inpatient Service,HCL NURSING,HNSI0000831,856.04
Department of Health,Leicestershire Partnership NHS Trust,22/10/21,NURSE - BAND 5 - AGENCY,Langley Ward ED Inpatient Service,HCL NURSING,HNSI0000831,890.80
Department of Health,Leicestershire Partnership NHS Trust,25/10/21,Computer Software,COVID 19,SMARTWAY2 LTD,2381,25200.00
Department of Health,Leicestershire Partnership NHS Trust,25/10/21,Crs_NHS_LT1y -Resus Inventory Supplied.,Balance Sheet Collection,SUPPLY CHAIN CO LTD,1122136075,29700.88
Department of Health,Leicestershire Partnership NHS Trust,25/10/21,Crs_NHS_LT1y -Resus Inventory Supplied.,Balance Sheet Collection,SUPPLY CHAIN CO LTD,1122129241,32050.13
Department of Health,Leicestershire Partnership NHS Trust,26/10/21,Gas,"Beaumont Leys Health Centre (P94, LPT)",TOTAL GAS & POWER LTD,249747239/21,368.14
Department of Health,Leicestershire Partnership NHS Trust,26/10/21,Gas,"Bradgate Unit (including Glenvale day Unit) (P7, LPT)",TOTAL GAS & POWER LTD,249747239/21,6444.65
Department of Health,Leicestershire Partnership NHS Trust,26/10/21,Gas,Bridge Park Plaza - First Floor (LPT),TOTAL GAS & POWER LTD,249747239/21,623.43
Department of Health,Leicestershire Partnership NHS Trust,26/10/21,Gas,"Bridge Park Road - Units 2 and 3 (P148, LPT)",TOTAL GAS & POWER LTD,249747239/21,125.62
Department of Health,Leicestershire Partnership NHS Trust,26/10/21,Gas,"Coalville Community Hospital (P138, LPT)",TOTAL GAS & POWER LTD,249747239/21,3407.32
Department of Health,Leicestershire Partnership NHS Trust,26/10/21,Gas,"Coalville Health Centre (P121, LPT)",TOTAL GAS & POWER LTD,249747239/21,256.67
Department of Health,Leicestershire Partnership NHS Trust,26/10/21,Gas,"Evington Centre (P6, LPT)",TOTAL GAS & POWER LTD,249747239/21,623.53
Department of Health,Leicestershire Partnership NHS Trust,26/10/21,Gas,"Farm Lodge (P34, LPT)",TOTAL GAS & POWER LTD,249747239/21,89.64
Department of Health,Leicestershire Partnership NHS Trust,26/10/21,Gas,"Feilding Palmer Hospital (Lutterworth) (P131, LPT)",TOTAL GAS & POWER LTD,249747239/21,778.19
Department of Health,Leicestershire Partnership NHS Trust,26/10/21,Gas,"Frith Cottages 3 & 4 (P36, LPT)",TOTAL GAS & POWER LTD,249747239/21,65.57
Department of Health,Leicestershire Partnership NHS Trust,26/10/21,Gas,HIS,TOTAL GAS & POWER LTD,249747239/21,34.14
Department of Health,Leicestershire Partnership NHS Trust,26/10/21,Gas,"Hawthorne Centre - Coalville (P14, LPT)",TOTAL GAS & POWER LTD,249747239/21,144.54
Department of Health,Leicestershire Partnership NHS Trust,26/10/21,Gas,"Hinckley and Bosworth Community Hospital (Sunnyside) (P133, LPT)",TOTAL GAS & POWER LTD,249747239/21,2648.08
Department of Health,Leicestershire Partnership NHS Trust,26/10/21,Gas,"Hynca Lodge (P33, LPT)",TOTAL GAS & POWER LTD,249747239/21,208.13
Department of Health,Leicestershire Partnership NHS Trust,26/10/21,Gas,"LGH - Gwendolen House (P4, LPT)",TOTAL GAS & POWER LTD,249747239/21,280.59
Department of Health,Leicestershire Partnership NHS Trust,26/10/21,Gas,"Loughborough Hospital (P136, LPT)",TOTAL GAS & POWER LTD,249747239/21,5703.36
Department of Health,Leicestershire Partnership NHS Trust,26/10/21,Gas,Mawson House (LPT),TOTAL GAS & POWER LTD,249747239/21,85.95
Department of Health,Leicestershire Partnership NHS Trust,26/10/21,Gas,"Mett Centre (P49, LPT)",TOTAL GAS & POWER LTD,249747239/21,134.70
Department of Health,Leicestershire Partnership NHS Trust,26/10/21,Gas,"Narborough Health Centre (P117, LPT)",TOTAL GAS & POWER LTD,249747239/21,210.56
Department of Health,Leicestershire Partnership NHS Trust,26/10/21,Gas,"Neville Centre - LGH (was DSC) (P147, LPT)",TOTAL GAS & POWER LTD,249747239/21,415.12
Department of Health,Leicestershire Partnership NHS Trust,26/10/21,Gas,"OSL House (P54, LPT)",TOTAL GAS & POWER LTD,249747239/21,198.82
Department of Health,Leicestershire Partnership NHS Trust,26/10/21,Gas,"Orchard Resource Centre (P15, LPT)",TOTAL GAS & POWER LTD,249747239/21,139.09
Department of Health,Leicestershire Partnership NHS Trust,26/10/21,Gas,"Rutland Memorial Hospital (P134, LPT)",TOTAL GAS & POWER LTD,249747239/21,653.60
Department of Health,Leicestershire Partnership NHS Trust,26/10/21,Gas,"Shepshed Health Centre (P123, LPT)",TOTAL GAS & POWER LTD,249747239/21,246.26
Department of Health,Leicestershire Partnership NHS Trust,26/10/21,Gas,"Springfield Road Health Centre (P92, LPT)",TOTAL GAS & POWER LTD,249747239/21,105.06
Department of Health,Leicestershire Partnership NHS Trust,26/10/21,Gas,"Stewart House (P61, LPT)",TOTAL GAS & POWER LTD,249747239/21,1330.46
Department of Health,Leicestershire Partnership NHS Trust,26/10/21,Gas,"Swithland House - London Road 352 (P44, LPT)",TOTAL GAS & POWER LTD,249747239/21,367.80
Department of Health,Leicestershire Partnership NHS Trust,26/10/21,Gas,"The Agnes Unit (AKA Assessment and Treatment Centre) (P85, LPT)",TOTAL GAS & POWER LTD,249747239/21,1324.79
Department of Health,Leicestershire Partnership NHS Trust,26/10/21,Gas,The Beacon,TOTAL GAS & POWER LTD,249747239/21,1179.73
Department of Health,Leicestershire Partnership NHS Trust,26/10/21,Gas,"The Cedars (P19, LPT)",TOTAL GAS & POWER LTD,249747239/21,94.34
Department of Health,Leicestershire Partnership NHS Trust,26/10/21,Gas,"The Grange 1 (P4, LPT)",TOTAL GAS & POWER LTD,249747239/21,107.97
Department of Health,Leicestershire Partnership NHS Trust,26/10/21,Gas,"The Grange 2 (P41, LPT)",TOTAL GAS & POWER LTD,249747239/21,213.84
Department of Health,Leicestershire Partnership NHS Trust,26/10/21,Gas,"The Willows - Cordelia Close (P22, LPT)",TOTAL GAS & POWER LTD,249747239/21,1465.03
Department of Health,Leicestershire Partnership NHS Trust,26/10/21,Gas,"Valentine Centre (P3, LPT)",TOTAL GAS & POWER LTD,249747239/21,1017.18
Department of Health,Leicestershire Partnership NHS Trust,26/10/21,Gas,"Westcotes Group -Westcotes House (P78, LPT)",TOTAL GAS & POWER LTD,249747239/21,447.22
Department of Health,Leicestershire Partnership NHS Trust,26/10/21,Gas,"Winstanley Drive Health Centre (P8, LPT)",TOTAL GAS & POWER LTD,249747239/21,126.82
Department of Health,Leicestershire Partnership NHS Trust,26/10/21,NURSE - BAND 2 - AGENCY,Beechwood Ward,HCL NURSING,HNSI0000830,3968.91
Department of Health,Leicestershire Partnership NHS Trust,26/10/21,NURSE - BAND 5 - AGENCY,Beechwood Ward,HCL NURSING,HNSI0000830,532.35
Department of Health,Leicestershire Partnership NHS Trust,26/10/21,NURSE - BAND 5 - AGENCY,City Planned Care - East,HCL NURSING,HNSI0000830,10395.03
Department of Health,Leicestershire Partnership NHS Trust,26/10/21,NURSE - BAND 5 - AGENCY,City Planned Care - West,HCL NURSING,HNSI0000830,13567.31
Department of Health,Leicestershire Partnership NHS Trust,26/10/21,NURSE - BAND 2 - AGENCY,Clarendon Ward,HCL NURSING,HNSI0000830,3120.40
Department of Health,Leicestershire Partnership NHS Trust,26/10/21,NURSE - BAND 5 - AGENCY,Clarendon Ward,HCL NURSING,HNSI0000830,9402.80
Department of Health,Leicestershire Partnership NHS Trust,26/10/21,NURSE - BAND 2 - AGENCY,Coalville Snibston Ward,HCL NURSING,HNSI0000830,863.90
Department of Health,Leicestershire Partnership NHS Trust,26/10/21,NURSE - BAND 5 - AGENCY,Coalville Snibston Ward,HCL NURSING,HNSI0000830,617.72
Department of Health,Leicestershire Partnership NHS Trust,26/10/21,NURSE - BAND 2 - AGENCY,Coalville Ward 2,HCL NURSING,HNSI0000830,1055.60
Department of Health,Leicestershire Partnership NHS Trust,26/10/21,NURSE - BAND 5 - AGENCY,Coalville Ward 2,HCL NURSING,HNSI0000830,1544.19
Department of Health,Leicestershire Partnership NHS Trust,26/10/21,NURSE - BAND 2 - AGENCY,Coalville Ward 4,HCL NURSING,HNSI0000830,219.46
Department of Health,Leicestershire Partnership NHS Trust,26/10/21,NURSE - BAND 2 - AGENCY,Dalgliesh Ward,HCL NURSING,HNSI0000830,776.75
Department of Health,Leicestershire Partnership NHS Trust,26/10/21,NURSE - BAND 5 - AGENCY,Dalgliesh Ward,HCL NURSING,HNSI0000830,3623.28
Department of Health,Leicestershire Partnership NHS Trust,26/10/21,NURSE - BAND 2 - AGENCY,H&B Comm Hosp East Ward,HCL NURSING,HNSI0000830,3145.84
Department of Health,Leicestershire Partnership NHS Trust,26/10/21,NURSE - BAND 5 - AGENCY,H&B Comm Hosp East Ward,HCL NURSING,HNSI0000830,5323.48
Department of Health,Leicestershire Partnership NHS Trust,26/10/21,NURSE - BAND 2 - AGENCY,H&B Comm Hosp North Ward,HCL NURSING,HNSI0000830,3069.11
Department of Health,Leicestershire Partnership NHS Trust,26/10/21,NURSE - BAND 5 - AGENCY,H&B Comm Hosp North Ward,HCL NURSING,HNSI0000830,6431.54
Department of Health,Leicestershire Partnership NHS Trust,26/10/21,NURSE - BAND 5 - AGENCY,Lough Swithland Ward,HCL NURSING,HNSI0000830,1630.35
Department of Health,Leicestershire Partnership NHS Trust,26/10/21,NURSE - BAND 2 - AGENCY,Rutland Ward Nursing,HCL NURSING,HNSI0000830,1086.22
Department of Health,Leicestershire Partnership NHS Trust,26/10/21,NURSE - BAND 5 - AGENCY,Rutland Ward Nursing,HCL NURSING,HNSI0000830,2546.00
Department of Health,Leicestershire Partnership NHS Trust,26/10/21,NURSE - BAND 2 - AGENCY,St Lukes Stroke Ward,HCL NURSING,HNSI0000830,1589.36
Department of Health,Leicestershire Partnership NHS Trust,26/10/21,NURSE - BAND 2 - AGENCY,St Lukes Ward 3,HCL NURSING,HNSI0000830,1087.14
Department of Health,Leicestershire Partnership NHS Trust,26/10/21,NURSE - BAND 5 - AGENCY,St Lukes Ward 3,HCL NURSING,HNSI0000830,2967.87
Department of Health,Leicestershire Partnership NHS Trust,26/10/21,NURSE - BAND 2 - AGENCY,Wakerley Ward,HCL NURSING,HNSI0000830,2998.51
Department of Health,Leicestershire Partnership NHS Trust,26/10/21,NURSE - BAND 5 - AGENCY,Wakerley Ward,HCL NURSING,HNSI0000830,9867.85
Department of Health,Leicestershire Partnership NHS Trust,26/10/21,Rent,"St Peters Health Center (Part 1st and 2nd floors) (P66, LPT)",LEICESTER LIFT CO,LEP1/SI0888,27433.45
Department of Health,Leicestershire Partnership NHS Trust,26/10/21,Services / Recharges from NHS Trusts,Inter Unit I & E Distribution,UHL NHS TRUST (RWE),L0254511,42801.66
Department of Health,Leicestershire Partnership NHS Trust,26/10/21,Maintenance Equipt/Materials,Estates & Facilities Central,UHL NHS TRUST (RWE),L0254510,35828.01
Department of Health,Leicestershire Partnership NHS Trust,26/10/21,UHL Facilities Management SLA,Estates Central Invoices To Recharge,UHL NHS TRUST (RWE),L0254508,940375.84
Department of Health,Leicestershire Partnership NHS Trust,27/10/21,Services / Recharges from NHS Trusts,Inter Unit I & E Distribution,UHL NHS TRUST (RWE),L0254516,60000.04
Department of Health,Leicestershire Partnership NHS Trust,28/10/21,Healthcare Services / Recharges from Non-NHS Bodies,Adult Eating Disorder Collaborative,ELLERN MEDE MOORGATE,OTM0027,36000.00
Department of Health,Leicestershire Partnership NHS Trust,28/10/21,Rent,"Syston Health Centre (New Building) (P127, LPT)",PHIP (5) LIMITED,LINV529080,37500.00
Department of Health,Leicestershire Partnership NHS Trust,28/10/21,UHL Facilities Management SLA,Estates & Facilities Central,UHL NHS TRUST (RWE),L0254571,113431.00
Department of Health,Leicestershire Partnership NHS Trust,28/10/21,Occupational Health,HR Operations,UHL NHS TRUST (RWE),L0254570,35290.00
Department of Health,Leicestershire Partnership NHS Trust,29/10/21,Nurse - Band 6 -Agency,CAMHS Learning Disabilities and Outreach Team,HCL SOCIAL CARE,HWSI0000882,1068.00
Department of Health,Leicestershire Partnership NHS Trust,29/10/21,Nurse - Band 6 -Agency,CAMHS Outpatients,HCL SOCIAL CARE,HWSI0000882,1566.50
Department of Health,Leicestershire Partnership NHS Trust,29/10/21,Nurse - Band 6 -Agency,CAMHS Waiting List Monies,HCL SOCIAL CARE,HWSI0000882,37439.87
Department of Health,Leicestershire Partnership NHS Trust,29/10/21,NURSE - BAND 2 - AGENCY,CAMHS Inpatient Service,HCL NURSING,HNSI0000838,9021.40
Department of Health,Leicestershire Partnership NHS Trust,29/10/21,NURSE - BAND 5 - AGENCY,CAMHS Inpatient Service,HCL NURSING,HNSI0000838,2864.80
Department of Health,Leicestershire Partnership NHS Trust,29/10/21,NURSE - BAND 2 - AGENCY,CAMHS Outpatients,HCL NURSING,HNSI0000838,2622.55
Department of Health,Leicestershire Partnership NHS Trust,29/10/21,Nurse - Band 6 -Agency,CAMHS Outpatients,HCL NURSING,HNSI0000838,2680.52
Department of Health,Leicestershire Partnership NHS Trust,29/10/21,Nurse - Band 6 -Agency,CAMHS Waiting List Monies,HCL NURSING,HNSI0000838,3466.41
Department of Health,Leicestershire Partnership NHS Trust,29/10/21,NURSE - BAND 2 - AGENCY,Crisis Response and Home Treatment,HCL NURSING,HNSI0000838,343.11
Department of Health,Leicestershire Partnership NHS Trust,29/10/21,NURSE - BAND 2 - AGENCY,Langley Ward ED Inpatient Service,HCL NURSING,HNSI0000838,298.95
Department of Health,Leicestershire Partnership NHS Trust,29/10/21,NURSE - BAND 5 - AGENCY,Langley Ward ED Inpatient Service,HCL NURSING,HNSI0000838,1333.08
Department of Health,Leicestershire Partnership NHS Trust,29/10/21,Nurse - Band 6 -Agency,AMH - Central Access Point,HCL NURSING,HNSI0000836,3082.65
Department of Health,Leicestershire Partnership NHS Trust,29/10/21,Nurse - Band 6 -Agency,Adult City East CMHT - Merlyn Vaz,HCL NURSING,HNSI0000836,1879.07
Department of Health,Leicestershire Partnership NHS Trust,29/10/21,Nurse - Band 6 -Agency,Adult County West Leicestershire CMHT,HCL NURSING,HNSI0000836,1069.97
Department of Health,Leicestershire Partnership NHS Trust,29/10/21,NURSE - BAND 2 - AGENCY,Agnes Unit Management,HCL NURSING,HNSI0000836,19335.56
Department of Health,Leicestershire Partnership NHS Trust,29/10/21,NURSE - BAND 5 - AGENCY,Agnes Unit Management,HCL NURSING,HNSI0000836,13874.42
Department of Health,Leicestershire Partnership NHS Trust,29/10/21,NURSE - BAND 2 - AGENCY,Ashby Ward (Bradgate Unit),HCL NURSING,HNSI0000836,613.52
Department of Health,Leicestershire Partnership NHS Trust,29/10/21,NURSE - BAND 5 - AGENCY,Ashby Ward (Bradgate Unit),HCL NURSING,HNSI0000836,2888.50
Department of Health,Leicestershire Partnership NHS Trust,29/10/21,NURSE - BAND 2 - AGENCY,Aston Ward (Bradgate Unit),HCL NURSING,HNSI0000836,2781.23
Department of Health,Leicestershire Partnership NHS Trust,29/10/21,NURSE - BAND 5 - AGENCY,Aston Ward (Bradgate Unit),HCL NURSING,HNSI0000836,5438.96
Department of Health,Leicestershire Partnership NHS Trust,29/10/21,NURSE - BAND 2 - AGENCY,Beaumont Ward - Bradgate Unit,HCL NURSING,HNSI0000836,3381.30
Department of Health,Leicestershire Partnership NHS Trust,29/10/21,NURSE - BAND 5 - AGENCY,Beaumont Ward - Bradgate Unit,HCL NURSING,HNSI0000836,2837.67
Department of Health,Leicestershire Partnership NHS Trust,29/10/21,NURSE - BAND 2 - AGENCY,Belvoir Psychiatric Intensive Care Unit,HCL NURSING,HNSI0000836,2161.81
Department of Health,Leicestershire Partnership NHS Trust,29/10/21,NURSE - BAND 5 - AGENCY,Belvoir Psychiatric Intensive Care Unit,HCL NURSING,HNSI0000836,1894.77
Department of Health,Leicestershire Partnership NHS Trust,29/10/21,NURSE - BAND 2 - AGENCY,Cedar (Willows),HCL NURSING,HNSI0000836,1044.50
Department of Health,Leicestershire Partnership NHS Trust,29/10/21,Nurse - Band 6 -Agency,City West CMHT MHSOP,HCL NURSING,HNSI0000836,1046.25
Department of Health,Leicestershire Partnership NHS Trust,29/10/21,NURSE - BAND 2 - AGENCY,Coleman Ward,HCL NURSING,HNSI0000836,9893.15
Department of Health,Leicestershire Partnership NHS Trust,29/10/21,NURSE - BAND 5 - AGENCY,Coleman Ward,HCL NURSING,HNSI0000836,9688.93
Department of Health,Leicestershire Partnership NHS Trust,29/10/21,NURSE - BAND 2 - AGENCY,Griffin Ward (HPC),HCL NURSING,HNSI0000836,4051.00
Department of Health,Leicestershire Partnership NHS Trust,29/10/21,NURSE - BAND 5 - AGENCY,Griffin Ward (HPC),HCL NURSING,HNSI0000836,514.85
Department of Health,Leicestershire Partnership NHS Trust,29/10/21,NURSE - BAND 2 - AGENCY,Heather Ward,HCL NURSING,HNSI0000836,3616.18
Department of Health,Leicestershire Partnership NHS Trust,29/10/21,NURSE - BAND 5 - AGENCY,Heather Ward,HCL NURSING,HNSI0000836,2011.59
Department of Health,Leicestershire Partnership NHS Trust,29/10/21,NURSE - BAND 2 - AGENCY,Kirby Ward,HCL NURSING,HNSI0000836,2973.83
Department of Health,Leicestershire Partnership NHS Trust,29/10/21,NURSE - BAND 5 - AGENCY,Kirby Ward,HCL NURSING,HNSI0000836,1953.50
Department of Health,Leicestershire Partnership NHS Trust,29/10/21,Nurse - Band 6 -Agency,Mental Health Liaison Team,HCL NURSING,HNSI0000836,1856.91
Department of Health,Leicestershire Partnership NHS Trust,29/10/21,NURSE - BAND 2 - AGENCY,Mill Lodge,HCL NURSING,HNSI0000836,9991.45
Department of Health,Leicestershire Partnership NHS Trust,29/10/21,NURSE - BAND 5 - AGENCY,Mill Lodge,HCL NURSING,HNSI0000836,2320.80
Department of Health,Leicestershire Partnership NHS Trust,29/10/21,NURSE - BAND 2 - AGENCY,Outreach,HCL NURSING,HNSI0000836,1710.63
Department of Health,Leicestershire Partnership NHS Trust,29/10/21,NURSE - BAND 2 - AGENCY,Phoenix Ward (HPC),HCL NURSING,HNSI0000836,2525.69
Department of Health,Leicestershire Partnership NHS Trust,29/10/21,NURSE - BAND 5 - AGENCY,Phoenix Ward (HPC),HCL NURSING,HNSI0000836,3941.97
Department of Health,Leicestershire Partnership NHS Trust,29/10/21,NURSE - BAND 2 - AGENCY,Place Of Safety Assessment Unit,HCL NURSING,HNSI0000836,1878.01
Department of Health,Leicestershire Partnership NHS Trust,29/10/21,NURSE - BAND 5 - AGENCY,Place Of Safety Assessment Unit,HCL NURSING,HNSI0000836,3187.55
Department of Health,Leicestershire Partnership NHS Trust,29/10/21,NURSE - BAND 2 - AGENCY,Stewart House,HCL NURSING,HNSI0000836,180.17
Department of Health,Leicestershire Partnership NHS Trust,29/10/21,NURSE - BAND 2 - AGENCY,Thornton Ward - Bradgate Unit,HCL NURSING,HNSI0000836,1230.52
Department of Health,Leicestershire Partnership NHS Trust,29/10/21,NURSE - BAND 5 - AGENCY,Thornton Ward - Bradgate Unit,HCL NURSING,HNSI0000836,514.85
Department of Health,Leicestershire Partnership NHS Trust,29/10/21,NURSE - BAND 2 - AGENCY,Urgent Care Hub,HCL NURSING,HNSI0000836,803.27
Department of Health,Leicestershire Partnership NHS Trust,29/10/21,NURSE - BAND 2 - AGENCY,Watermead Ward (Bradgate Unit),HCL NURSING,HNSI0000836,4129.51
Department of Health,Leicestershire Partnership NHS Trust,29/10/21,NURSE - BAND 5 - AGENCY,Watermead Ward (Bradgate Unit),HCL NURSING,HNSI0000836,3772.70
Department of Health,Leicestershire Partnership NHS Trust,29/10/21,NURSE - BAND 2 - AGENCY,Welford Ward,HCL NURSING,HNSI0000836,941.08
Department of Health,Leicestershire Partnership NHS Trust,29/10/21,NURSE - BAND 5 - AGENCY,Welford Ward,HCL NURSING,HNSI0000836,1419.45
